bitfinex-derivatives/quotes_BNBF0:USTF0_20250116
["timestamp","ask_amount","ask_price","bid_price","bid_amount"]
[1737047312296,1.04967765,713.12,712.43,0.48782591]
[1737047312493,1.04967765,713.12,712.44,0.48811036]
[1737047312691,1.04967765,713.12,712.45,0.48811036]
[1737047312888,1.04967765,713.12,712.46,0.48811036]
[1737047313090,1.04967765,713.12,711.99,0.28090282]
[1737047313293,1.04967765,713.15,712.0,0.48811012]
[1737047313493,1.04967765,713.15,712.01,0.48811012]
[1737047313692,1.04967765,713.15,712.02,0.48811012]
[1737047313893,1.04967765,713.15,712.03,0.48811012]
[1737047314094,1.04967765,713.15,712.04,0.48811012]
[1737047314294,1.04967765,713.15,712.05,0.48811012]
[1737047314593,1.04967765,713.11,712.06,0.48811012]
[1737047314792,1.04967765,713.11,712.07,0.48811012]
[1737047314994,1.04967765,713.11,712.08,0.48811012]
[1737047315194,1.04967765,713.11,712.09,0.48811012]
[1737047315390,1.04967765,713.16,712.1,0.48811012]
[1737047315590,1.04967765,713.16,712.11,0.48811012]
[1737047315793,1.04967765,713.16,712.12,0.48811012]
[1737047316094,1.04967765,713.16,712.13,0.48811012]
[1737047316293,1.04967765,713.16,712.14,0.48811012]
[1737047316491,1.04967765,713.18,712.15,0.48811012]
[1737047316690,1.04967765,713.18,712.16,0.48811012]
[1737047316994,1.04967765,713.18,711.99,0.28090282]
[1737047316995,1.04967765,713.18,712.17,0.48811012]
[1737047317195,1.04967765,713.18,712.18,0.48811012]
[1737047317398,1.04967765,713.25,712.19,0.48811012]
[1737047317594,1.04967765,713.25,712.2,0.48811012]
[1737047317796,1.04967765,713.25,712.21,0.48811012]
[1737047317992,1.04967765,713.25,712.22,0.48811012]
[1737047318196,1.04967765,713.25,712.23,0.48811012]
[1737047318399,1.04967765,713.25,712.24,0.48811012]
[1737047318593,1.04967765,713.25,712.25,0.48811012]
[1737047318797,1.04967765,713.25,712.26,0.48811012]
[1737047318992,1.04967765,713.25,712.27,0.48811012]
[1737047319195,1.04967765,713.25,712.28,0.48811012]
[1737047319398,1.04967765,713.25,712.29,0.48811012]
[1737047319599,1.04967765,713.08,712.3,0.48811012]
[1737047319799,1.04967765,713.08,712.31,0.48811012]
[1737047319994,1.04967765,713.08,712.32,0.48811012]
[1737047320201,1.04967765,713.08,712.33,0.48811012]
[1737047320394,1.04967765,713.08,712.34,0.48811012]
[1737047320597,1.04967765,713.08,711.99,0.28090282]
[1737047320598,1.04967765,713.08,712.35,0.48811012]
[1737047320794,1.04967765,713.17,712.36,0.48811012]
[1737047320995,1.04967765,713.17,712.37,0.48811012]
[1737047321194,1.04967765,713.17,712.38,0.48811012]
[1737047321396,1.04967765,713.17,712.39,0.48811012]
[1737047321599,1.04967765,713.17,711.99,0.28090282]
[1737047321600,1.04967765,713.17,712.4,0.48811012]
[1737047321800,1.04967765,713.17,712.41,0.48811012]
[1737047322002,1.04967765,713.12,712.42,0.48811012]
[1737047322201,1.04967765,713.12,712.43,0.48811012]
[1737047322402,1.04967765,713.12,712.44,0.48811012]
[1737047322604,1.04967765,713.12,712.45,0.48811012]
[1737047322797,1.04967765,713.12,712.46,0.48811012]
[1737047323001,1.04967765,713.12,711.99,0.28090282]
[1737047323201,1.04967765,713.12,712.0,0.48823253]
[1737047323401,0.28039086,713.29,712.01,0.48823253]
[1737047323402,1.04967765,713.04,712.01,0.48823253]
[1737047323604,1.04967765,713.04,712.02,0.48823253]
[1737047323802,1.04967765,713.04,711.99,0.28090282]
[1737047323803,1.04967765,713.04,712.03,0.48823253]
[1737047324003,1.04967765,713.04,712.04,0.48823253]
[1737047324305,1.04967765,713.01,712.05,0.48823253]
[1737047324505,1.04967765,713.01,712.06,0.48823253]
[1737047324803,1.04967765,713.01,712.07,0.48823253]
[1737047325005,1.04967765,713.01,712.08,0.48823253]
[1737047325205,1.04967765,713.01,712.09,0.48823253]
[1737047325405,1.04967765,713.01,712.1,0.48823253]
[1737047325604,1.04967765,713.01,712.11,0.48823253]
[1737047325904,1.04967765,713.01,712.12,0.48823253]
[1737047326106,1.04967765,713.01,712.13,0.48823253]
[1737047326301,1.04967765,713.03,712.14,0.48823253]
[1737047326501,1.04967765,713.03,712.15,0.48823253]
[1737047326699,1.04967765,713.03,712.16,0.48823253]
[1737047326902,1.04967765,713.03,712.17,0.48823253]
[1737047327103,1.04967765,713.03,712.18,0.48823253]
[1737047327299,1.04967765,713.01,711.99,0.28090282]
[1737047327501,1.04967765,713.01,712.0,0.48834141]
[1737047327807,1.04967765,713.01,712.01,0.48834141]
[1737047328107,1.04967765,713.01,712.02,0.48834141]
[1737047328407,1.04967765,713.01,712.03,0.48834141]
[1737047328607,1.04967765,713.01,712.04,0.48834141]
[1737047328808,1.04967765,713.01,712.05,0.48834141]
[1737047329004,1.04967765,713.01,712.06,0.48834141]
[1737047329207,1.04967765,713.01,712.07,0.48834141]
[1737047329403,1.04967765,713.01,712.08,0.48834141]
[1737047329606,1.04967765,713.01,711.99,0.28090282]
[1737047329607,1.04967765,712.96,712.09,0.48834141]
[1737047329902,1.04967765,712.96,712.1,0.48834141]
[1737047330107,1.04967765,712.96,712.11,0.48834141]
[1737047330307,1.04967765,712.96,712.12,0.48834141]
[1737047330509,1.04967765,712.96,712.13,0.48834141]
[1737047330704,0.72317447,713.28,712.14,0.48834141]
[1737047330705,1.04967765,712.95,712.14,0.48834141]
[1737047330903,1.04967765,712.95,712.15,0.48834141]
[1737047331105,1.04967765,712.95,712.16,0.48834141]
[1737047331306,1.04967765,712.95,712.17,0.48834141]
[1737047331508,1.04967765,712.95,712.18,0.48834141]
[1737047331703,1.04967765,712.96,712.19,0.48834141]
[1737047331909,1.04967765,712.96,712.2,0.48834141]
[1737047332109,1.04967765,712.96,712.21,0.48834141]
[1737047332311,1.04967765,712.96,711.99,0.28090282]
[1737047332312,1.04967765,712.96,712.22,0.48834141]
[1737047332611,1.04967765,712.93,712.23,0.48834141]
[1737047332809,1.04967765,712.93,712.24,0.48834141]
[1737047333009,1.04967765,712.93,712.25,0.48834141]
[1737047333209,1.04967765,712.93,712.26,0.48834141]
[1737047333510,1.04967765,712.93,712.27,0.48834141]
[1737047333711,1.04967765,713.11,712.28,0.48834141]
[1737047333911,1.04967765,713.11,712.29,0.48834141]
[1737047334111,1.04967765,713.11,712.3,0.48834141]
[1737047334408,1.04967765,713.11,712.31,0.48834141]
[1737047334610,1.04967765,713.11,712.32,0.48834141]
[1737047334810,1.04967765,713.11,712.33,0.48834141]
[1737047335010,1.04967765,713.12,712.34,0.48834141]
[1737047335207,1.04967765,713.12,712.35,0.48834141]
[1737047335410,1.04967765,713.12,712.36,0.48834141]
[1737047335611,1.04967765,713.12,711.99,0.28090282]
[1737047335612,1.04967765,713.12,712.37,0.48834141]
[1737047335805,1.04967765,713.12,712.38,0.48834141]
[1737047336015,1.04967765,713.12,712.39,0.48834141]
[1737047336213,0.28039086,713.29,711.99,0.28090282]
[1737047336214,1.04967765,713.03,712.4,0.48834141]
[1737047336510,1.04967765,713.03,712.41,0.48834141]
[1737047336705,1.04967765,713.03,712.42,0.48834141]
[1737047336909,1.04967765,713.03,712.43,0.48834141]
[1737047337111,1.04967765,713.15,712.44,0.48834141]
[1737047337307,1.04967765,713.15,712.45,0.48834141]
[1737047337507,1.04967765,713.15,712.46,0.48834141]
[1737047337709,1.04967765,713.15,712.47,0.48834141]
[1737047337909,1.04967765,713.15,712.48,0.48834141]
[1737047338110,1.04967765,713.15,712.49,0.48834141]
[1737047338312,1.04967765,713.15,712.5,0.48834141]
[1737047338512,1.04967765,713.15,712.51,0.48834141]
[1737047338714,1.04967765,713.15,712.52,0.48797873]
[1737047338913,1.04967765,713.15,712.53,0.48797873]
[1737047339217,1.04967765,713.2,712.54,0.48797873]
[1737047339407,1.04967765,713.2,711.99,0.28090282]
[1737047339408,1.04967765,713.2,712.55,0.48797873]
[1737047339609,1.04967765,713.2,712.56,0.48797873]
[1737047339808,1.04967765,713.2,712.57,0.48797873]
[1737047340009,1.04967765,713.24,712.58,0.48797873]
[1737047340312,1.04967765,713.24,712.59,0.48797873]
[1737047340513,1.04967765,713.24,712.6,0.48797873]
[1737047340708,1.04967765,713.24,712.61,0.48797873]
[1737047340911,1.04967765,713.24,712.62,0.48797873]
[1737047341108,1.04967765,713.24,712.63,0.48797873]
[1737047341313,0.28039086,713.29,712.64,0.48797873]
[1737047341513,0.28039086,713.29,711.99,0.28090282]
[1737047341709,0.28039086,713.29,712.0,0.74578746]
[1737047341918,0.28039086,713.29,712.01,0.74578746]
[1737047342215,0.28039086,713.29,712.02,0.74578746]
[1737047342516,1.04967765,713.16,712.03,0.74578746]
[1737047342811,1.04967765,713.16,712.04,0.74578746]
[1737047343018,1.04967765,713.16,712.05,0.74578746]
[1737047343316,1.04967765,713.16,712.06,0.74578746]
[1737047343514,1.04967765,713.16,712.07,0.74578746]
[1737047343715,1.04967765,713.16,712.0,1.04721031]
[1737047343716,1.04967765,713.16,712.08,0.74578746]
[1737047343915,1.04967765,713.16,712.09,0.74578746]
[1737047344119,1.04967765,713.16,712.1,0.74578746]
[1737047344417,1.04967765,713.17,712.11,0.74576283]
[1737047344611,1.04967765,713.17,712.12,0.74576283]
[1737047344813,1.04967765,713.17,712.13,0.74576283]
[1737047345013,1.04967765,713.17,712.14,0.48787604]
[1737047345214,1.04967765,713.17,712.15,0.48787604]
[1737047345414,1.04967765,713.24,712.16,0.48787604]
[1737047345616,1.04967765,713.24,712.17,0.48787604]
[1737047345819,1.04967765,713.24,712.0,1.04721031]
[1737047345820,1.04967765,713.24,712.18,0.48787604]
[1737047346111,1.04967765,713.24,712.19,0.48787604]
[1737047346317,1.04967765,713.26,712.2,0.48787604]
[1737047346512,1.04967765,713.26,712.21,0.48787604]
[1737047346717,1.04967765,713.26,712.22,0.48787604]
[1737047346917,1.04967765,713.26,712.23,0.48787604]
[1737047347113,1.04967765,713.26,712.24,0.48787604]
[1737047347319,1.04967765,713.28,712.25,0.48787604]
[1737047347613,1.04967765,713.28,712.26,0.48787604]
[1737047347813,1.04967765,713.28,712.27,0.48787604]
[1737047348012,1.04967765,713.28,712.28,0.48787604]
[1737047348318,1.04967765,713.28,712.29,0.48787604]
[1737047348519,1.04967765,713.28,712.3,0.48787604]
[1737047348818,1.04967765,713.27,712.31,0.48787604]
[1737047349018,1.04967765,713.27,712.32,0.48787604]
[1737047349219,1.04967765,713.27,712.33,0.48787604]
[1737047349419,1.04967765,713.27,712.34,0.48787604]
[1737047349714,0.28039086,713.29,712.35,0.48787604]
[1737047349920,0.28039086,713.29,712.36,0.48787604]
[1737047350121,0.28039086,713.29,712.37,0.48787604]
[1737047350421,0.28039086,713.29,712.38,0.48787604]
[1737047350623,0.28039086,713.29,712.39,0.48787604]
[1737047350822,0.28039086,713.29,712.4,0.48787604]
[1737047351023,0.28039086,713.29,712.41,0.48787604]
[1737047351220,0.28039086,713.29,712.42,0.48787604]
[1737047351424,0.28039086,713.29,712.43,0.48787604]
[1737047351623,0.28039086,713.29,712.44,0.48787604]
[1737047351819,0.28039086,713.29,712.45,0.48787604]
[1737047352026,0.28039086,713.29,712.46,0.48787604]
[1737047352224,1.04967765,713.16,712.47,0.48787604]
[1737047352424,1.04967765,713.16,712.48,0.48787604]
[1737047352727,1.04967765,713.16,712.49,0.48787604]
[1737047352926,1.04967765,713.16,712.5,0.48787604]
[1737047353126,1.04967765,713.17,712.51,0.48787604]
[1737047353326,1.04967765,713.17,712.52,0.48726237]
[1737047353530,1.04967765,713.17,712.53,0.48726237]
[1737047353730,1.04967765,713.17,712.54,0.48726237]
[1737047353930,1.04967765,713.17,712.55,0.48726237]
[1737047354131,1.04967765,713.17,712.56,0.48726237]
[1737047354431,1.04967765,713.19,712.57,0.48726237]
[1737047354630,1.04967765,713.19,712.58,0.48726237]
[1737047354929,1.04967765,713.19,712.59,0.48726237]
[1737047355132,1.04967765,713.19,712.6,0.48726237]
[1737047355330,1.04967765,713.19,712.61,0.48726237]
[1737047355531,1.04967765,713.19,712.62,0.48726237]
[1737047355832,1.04967765,713.2,711.99,1.32811313]
[1737047356130,1.04967765,713.2,712.0,0.74533705]
[1737047356331,1.04967765,713.2,712.01,0.74533705]
[1737047356531,1.04967765,713.2,712.02,0.74533705]
[1737047356726,1.04967765,713.2,712.03,0.74533705]
[1737047356928,1.04967765,713.2,712.04,0.74533705]
[1737047357129,1.04967765,713.2,712.05,0.7453256]
[1737047357427,1.04967765,713.17,712.06,0.7453256]
[1737047357627,1.04967765,713.17,712.07,0.7453256]
[1737047357832,1.04967765,713.17,712.08,0.7453256]
[1737047358029,1.04967765,713.17,712.09,0.7453256]
[1737047358228,1.04967765,713.17,712.1,0.7453256]
[1737047358430,1.04967765,713.17,712.11,0.7453256]
[1737047358631,1.04967765,713.17,712.12,0.74532626]
[1737047358826,1.04967765,713.23,712.13,0.48742377]
[1737047359030,1.04967765,713.23,712.14,0.48742377]
[1737047359229,1.04967765,713.23,712.15,0.48742377]
[1737047359433,1.04967765,713.23,711.99,0.28090282]
[1737047359434,1.04967765,713.23,712.16,0.48742377]
[1737047359639,1.04967765,713.23,712.17,0.48742377]
[1737047359931,1.04967765,713.27,712.18,0.48742377]
[1737047360133,1.04967765,713.27,712.19,0.48742377]
[1737047360334,1.04967765,713.27,712.2,0.48742377]
[1737047360636,1.04967765,713.27,712.21,0.48742377]
[1737047360838,1.04967765,713.27,712.22,0.48742377]
[1737047361131,1.04967765,713.22,712.23,0.48742377]
[1737047361438,1.04967765,713.22,712.24,0.48742377]
[1737047361631,1.04967765,713.22,712.25,0.48742377]
[1737047361830,1.04967765,713.22,712.26,0.48742377]
[1737047362031,1.04967765,713.22,712.27,0.48742377]
[1737047362240,1.04967765,713.22,712.28,0.48742377]
[1737047362435,1.04967765,713.22,712.29,0.48742377]
[1737047362635,1.04967765,713.22,712.3,0.48742377]
[1737047362934,0.28039086,713.29,712.31,0.48742377]
[1737047363234,0.28039086,713.29,712.32,0.48742377]
[1737047363536,0.28039086,713.29,712.33,0.48742377]
[1737047363737,0.28039086,713.29,712.34,0.48742377]
[1737047363936,0.28039086,713.29,712.35,0.48742377]
[1737047364137,1.04967765,713.28,712.36,0.48742377]
[1737047364340,1.04967765,713.28,712.37,0.48742377]
[1737047364532,1.04967765,713.28,712.38,0.48742377]
[1737047364737,1.04967765,713.28,712.39,0.48742377]
[1737047365039,1.04967765,713.28,712.4,0.48742377]
[1737047365240,1.04967765,713.25,712.41,0.48742377]
[1737047365433,1.04967765,713.25,712.42,0.48742377]
[1737047365634,1.04967765,713.25,712.43,0.48742377]
[1737047365833,1.04967765,713.25,712.44,0.48742377]
[1737047366038,1.04967765,713.25,712.45,0.48742377]
[1737047366241,1.04967765,713.25,712.46,0.48742377]
[1737047366435,1.04967765,713.25,712.47,0.48742377]
[1737047366639,1.04967765,713.25,712.48,0.48735703]
[1737047366840,1.04967765,713.25,712.49,0.48735703]
[1737047367034,1.04967765,713.25,712.5,0.48735703]
[1737047367238,1.04967765,713.25,712.51,0.48735703]
[1737047367438,1.04967765,713.25,712.52,0.48735703]
[1737047367634,1.04967765,713.23,712.53,0.48735703]
[1737047367938,1.04967765,713.23,712.54,0.48735703]
[1737047368138,1.04967765,713.23,712.55,0.48735703]
[1737047368339,1.04967765,713.23,712.56,0.48735703]
[1737047368638,1.04967765,713.23,712.57,0.48735703]
[1737047368842,1.04967765,713.16,712.58,0.48735703]
[1737047369036,1.04967765,713.16,712.59,0.48735703]
[1737047369233,1.04967765,713.16,712.0,1.04721031]
[1737047369234,1.04967765,713.16,712.6,0.48735703]
[1737047369439,1.04967765,713.16,712.61,0.48735703]
[1737047369641,1.04967765,713.16,712.62,0.48735703]
[1737047369843,1.04967765,713.11,712.63,0.48735703]
[1737047370043,1.04967765,713.11,712.64,0.48735703]
[1737047370341,1.04967765,713.11,712.65,0.48735703]
[1737047370535,1.04967765,713.11,712.66,0.48735703]
[1737047370738,1.04967765,713.11,712.1,1.04721031]
[1737047370942,1.04967765,713.1,712.11,0.48761166]
[1737047371148,1.04967765,713.1,712.12,0.48761166]
[1737047371343,1.04967765,713.1,712.13,0.48761166]
[1737047371542,1.04967765,713.1,712.14,0.48761166]
[1737047371747,1.04967765,713.1,712.15,0.48761166]
[1737047371950,1.04967765,713.1,712.16,0.48761166]
[1737047372149,1.04967765,713.1,712.17,0.48761166]
[1737047372350,1.04967765,713.1,712.18,0.48761166]
[1737047372649,1.04967765,713.11,712.19,0.48761166]
[1737047372948,1.04967765,713.11,712.2,0.48761166]
[1737047373149,1.04967765,713.11,712.21,0.48761166]
[1737047373450,1.04967765,713.11,712.22,0.48761166]
[1737047373755,1.04967765,713.11,712.23,0.48761166]
[1737047373955,0.28039086,713.29,712.1,1.04721031]
[1737047373956,1.04967765,713.1,712.24,0.48761166]
[1737047374145,1.04967765,713.1,712.25,0.48761166]
[1737047374350,1.04967765,713.1,712.26,0.48761166]
[1737047374551,1.04967765,713.1,712.27,0.48761166]
[1737047374856,1.04967765,713.16,712.28,0.48761166]
[1737047375152,1.04967765,713.16,712.29,0.48761166]
[1737047375352,0.28039086,713.29,712.3,0.48761166]
[1737047375654,0.28039086,713.29,712.31,0.48761166]
[1737047375853,0.28039086,713.29,712.32,0.48761166]
[1737047376051,0.28039086,713.29,712.33,0.48761166]
[1737047376252,1.05143111,713.18,712.34,0.48761166]
[1737047376549,1.05143111,713.18,712.35,0.48761166]
[1737047376752,1.05143111,713.18,712.36,0.48761166]
[1737047377050,0.28039086,713.29,712.37,0.48761166]
[1737047377253,0.28039086,713.29,712.38,0.48761166]
[1737047377452,0.28039086,713.29,712.39,0.48761166]
[1737047377651,0.28039086,713.29,712.4,0.48761166]
[1737047377953,0.28039086,713.29,712.41,0.48761166]
[1737047378150,0.28039086,713.29,712.42,0.48761166]
[1737047378453,0.28039086,713.29,712.2,1.04913556]
[1737047378454,0.28039086,713.29,712.43,0.48761166]
[1737047378755,0.28039086,713.29,712.44,0.48761166]
[1737047379054,1.05143111,713.41,712.45,0.48761166]
[1737047379255,1.05143111,713.41,712.46,0.48761166]
[1737047379553,1.86355131,714.41,712.47,0.48761166]
[1737047379554,1.05143111,713.43,712.47,0.48761166]
[1737047379754,1.05143111,713.43,712.48,0.48761166]
[1737047379952,1.05143111,713.43,712.49,0.48761166]
[1737047380148,1.05143111,713.43,712.5,0.48761166]
[1737047380354,1.05143111,713.43,712.51,0.48761166]
[1737047380556,2.14667186,714.23,712.52,0.48761166]
[1737047380557,1.05143111,713.45,712.52,0.48761166]
[1737047380856,1.05143111,713.45,712.53,0.48761166]
[1737047381158,1.05143111,713.45,712.54,0.48761166]
[1737047381357,1.05143111,713.45,712.55,0.48761166]
[1737047381557,1.05143111,713.47,712.56,0.48761166]
[1737047381754,1.05143111,713.47,712.57,0.48761166]
[1737047381955,1.05143111,713.47,712.58,0.48761166]
[1737047382150,1.05143111,713.47,712.59,0.48761166]
[1737047382350,1.05143111,713.47,712.6,0.48761166]
[1737047382555,1.05143111,713.47,712.61,0.48761166]
[1737047382757,1.05143111,713.48,712.62,0.48761166]
[1737047382956,1.05143111,713.48,712.63,0.48761166]
[1737047383156,1.05143111,713.48,712.64,0.48761166]
[1737047383356,1.05143111,713.48,712.65,0.48761166]
[1737047383656,1.05143111,713.48,712.66,0.48761166]
[1737047383852,1.05143111,713.5,712.67,0.48761166]
[1737047384054,1.05143111,713.5,712.68,0.48761166]
[1737047384254,1.05143111,713.5,712.69,0.48761166]
[1737047384455,1.05143111,713.5,712.7,0.48761166]
[1737047384655,1.05143111,713.5,712.71,0.48761166]
[1737047384857,1.05143111,713.51,712.72,0.48761166]
[1737047385057,1.05143111,713.51,712.73,0.48761166]
[1737047385356,1.05143111,713.51,712.74,0.48761166]
[1737047385556,1.05143111,713.51,712.75,0.48761166]
[1737047385754,1.05143111,713.51,712.76,0.48761166]
[1737047385952,1.05143111,713.51,712.77,0.48761166]
[1737047386153,1.05143111,713.51,712.78,0.48702326]
[1737047386353,1.05143111,713.48,712.79,0.48702326]
[1737047386552,1.05143111,713.48,712.11,1.04913556]
[1737047386756,1.05143111,713.48,712.12,0.74486346]
[1737047386958,1.05143111,713.48,712.13,0.74486569]
[1737047387159,1.05143111,713.48,712.14,0.74486569]
[1737047387359,1.05143111,713.48,712.15,1.0257054]
[1737047387560,1.05143111,713.45,712.16,0.48701761]
[1737047387759,1.05143111,713.45,712.17,0.48701761]
[1737047387961,1.05143111,713.45,712.18,0.48701761]
[1737047388162,1.05143111,713.45,712.19,0.48701761]
[1737047388460,1.05143111,713.45,712.2,0.48701761]
[1737047388661,1.05143111,713.49,712.21,0.48701761]
[1737047388861,1.05143111,713.49,712.22,0.48701761]
[1737047389063,1.05143111,713.49,712.23,0.48701761]
[1737047389262,1.05143111,713.49,712.24,0.48701761]
[1737047389462,1.05143111,713.49,712.25,0.48701761]
[1737047389662,0.72265751,714.18,712.26,0.48701761]
[1737047389663,1.05143111,713.5,712.26,0.48701761]
[1737047389860,1.05143111,713.5,712.27,0.48701761]
[1737047390062,1.05143111,713.5,712.28,0.48701761]
[1737047390262,1.05143111,713.5,712.29,0.48701761]
[1737047390465,1.05143111,713.5,712.3,0.48701761]
[1737047390661,1.05143111,713.5,712.15,0.28083971]
[1737047390662,1.05143111,713.47,712.31,0.48701761]
[1737047390963,1.05143111,713.47,712.32,0.48701761]
[1737047391164,1.05143111,713.47,712.33,0.48701761]
[1737047391363,1.05143111,713.47,712.34,0.48701761]
[1737047391565,1.05143111,713.47,712.35,0.48701761]
[1737047391860,1.05143111,713.44,712.36,0.48701761]
[1737047392060,1.05143111,713.44,712.37,0.48701761]
[1737047392260,1.05143111,713.44,712.38,0.48701761]
[1737047392460,1.05143111,713.44,712.39,0.48701761]
[1737047392664,1.05143111,713.44,712.4,0.48701761]
[1737047392863,1.05143111,713.44,712.41,0.48701761]
[1737047393063,1.05143111,713.44,712.42,0.48701761]
[1737047393263,1.05143111,713.44,712.43,0.48701761]
[1737047393464,1.05143111,713.44,712.44,0.48701761]
[1737047393660,1.05143111,713.44,712.45,0.48701761]
[1737047393864,1.05143111,713.44,712.46,0.48701761]
[1737047394165,1.05143111,713.44,712.47,0.48701761]
[1737047394364,1.05143111,713.44,712.48,0.48701761]
[1737047394564,1.05143111,713.44,712.49,0.48701761]
[1737047394765,1.05143111,713.44,712.5,0.48701761]
[1737047394960,1.05143111,713.44,712.51,0.48701761]
[1737047395160,1.05143111,713.44,712.52,0.48701761]
[1737047395364,1.05143111,713.44,712.53,0.48701761]
[1737047395562,1.05143111,713.43,712.54,0.48701761]
[1737047395762,1.05143111,713.43,712.55,0.48701761]
[1737047395966,1.05143111,713.43,712.56,0.48701761]
[1737047396166,1.05143111,713.43,712.57,0.48701761]
[1737047396366,1.05143111,713.43,712.58,0.48701761]
[1737047396567,1.05143111,713.42,712.59,0.48701761]
[1737047396769,1.05143111,713.42,712.6,0.48701761]
[1737047396969,1.05143111,713.42,712.15,0.28083971]
[1737047396970,1.05143111,713.42,712.61,0.48701761]
[1737047397169,1.05143111,713.42,712.62,0.48701761]
[1737047397372,1.05143111,713.42,712.63,0.48701761]
[1737047397669,1.05143111,713.42,712.64,0.48701761]
[1737047397872,1.05143111,713.39,712.65,0.48701761]
[1737047398071,1.05143111,713.39,712.66,0.48701761]
[1737047398367,1.05143111,713.39,712.67,0.48701761]
[1737047398573,1.05143111,713.39,712.68,0.48701761]
[1737047398770,1.46464133,713.7,712.15,0.28083971]
[1737047398771,1.05143111,713.37,712.69,0.48701761]
[1737047399073,1.05143111,713.37,712.7,0.48777278]
[1737047399271,1.05143111,713.37,712.15,0.28083971]
[1737047399476,1.05143111,713.37,712.16,0.48778995]
[1737047399675,1.05143111,713.37,712.17,0.48778995]
[1737047399870,1.05143111,713.25,712.18,0.48778995]
[1737047400069,1.05143111,713.25,712.19,0.48778995]
[1737047400269,1.05143111,713.25,712.2,0.48778995]
[1737047400471,1.05143111,713.25,712.21,0.48778995]
[1737047400671,1.05143111,713.25,712.22,0.48778995]
[1737047400871,1.05143111,713.25,712.15,0.28083971]
[1737047400872,1.05143111,713.25,712.23,0.48778995]
[1737047401074,0.72233665,713.69,712.24,0.48778995]
[1737047401075,1.05143111,713.22,712.24,0.48778995]
[1737047401275,1.05143111,713.22,712.25,0.48778995]
[1737047401473,1.05143111,713.22,712.26,0.48778995]
[1737047401671,1.05143111,713.22,712.27,0.48778995]
[1737047401873,1.05143111,713.22,712.15,0.28083971]
[1737047401874,1.05143111,713.2,712.28,0.48778995]
[1737047402076,1.05143111,713.2,712.29,0.48778995]
[1737047402276,1.05143111,713.2,712.3,0.48778995]
[1737047402475,1.05143111,713.2,712.15,0.28083971]
[1737047402476,1.05143111,713.2,712.31,0.48778995]
[1737047402676,1.05143111,713.2,712.32,0.48778995]
[1737047402873,1.05143111,713.2,712.33,0.48778995]
[1737047403077,1.05143111,713.2,712.34,0.48778995]
[1737047403271,1.05143111,713.2,712.35,0.48778995]
[1737047403475,1.05143111,713.2,712.15,0.28083971]
[1737047403476,1.05143111,713.2,712.36,0.48778995]
[1737047403676,1.05143111,713.18,712.37,0.48778995]
[1737047403877,1.05143111,713.18,712.38,0.48778995]
[1737047404077,1.05143111,713.18,712.39,0.48778995]
[1737047404279,1.05143111,713.18,712.4,0.48778995]
[1737047404479,1.05143111,713.18,712.41,0.48778995]
[1737047404681,1.05143111,713.06,712.42,0.48778995]
[1737047404873,1.05143111,713.06,712.43,0.48778995]
[1737047405074,1.05143111,713.06,712.44,0.48778995]
[1737047405274,1.05143111,713.06,712.45,0.48778995]
[1737047405576,1.05143111,713.06,712.46,0.48778995]
[1737047405777,1.05143111,713.11,712.47,0.48778995]
[1737047405977,1.05143111,713.11,712.48,0.48778995]
[1737047406178,1.05143111,713.11,712.49,0.48778995]
[1737047406373,1.05143111,713.11,712.5,0.48778995]
[1737047406577,1.05143111,713.11,712.51,0.48778995]
[1737047406774,1.05143111,713.13,712.52,0.48778995]
[1737047406974,1.05143111,713.13,712.53,0.48778995]
[1737047407280,1.05143111,713.13,712.54,0.48778995]
[1737047407481,1.05143111,713.13,712.55,0.48778995]
[1737047407682,1.05143111,713.14,712.56,0.48778995]
[1737047407876,1.05143111,713.14,712.57,0.48904996]
[1737047408080,1.05143111,713.14,712.58,0.48904996]
[1737047408276,1.05143111,713.14,712.59,0.48904996]
[1737047408477,1.05143111,713.17,712.6,0.48904996]
[1737047408776,1.05143111,713.17,712.61,0.48904996]
[1737047408981,1.05143111,713.17,712.62,0.48904996]
[1737047409181,1.05143111,713.17,712.63,0.48904996]
[1737047409477,1.05143111,713.17,712.64,0.48881624]
[1737047409681,1.05143111,713.17,712.65,0.48881624]
[1737047409878,1.05143111,713.26,712.15,0.28083971]
[1737047410082,1.05143111,713.26,712.16,0.48895656]
[1737047410284,1.05143111,713.26,712.17,0.48895656]
[1737047410582,1.05143111,713.26,712.18,0.48895656]
[1737047410778,1.05143111,713.11,712.19,0.48895656]
[1737047410983,1.05143111,713.11,712.2,0.48895656]
[1737047411178,1.05143111,713.11,712.15,0.28083971]
[1737047411179,1.05143111,713.11,712.21,0.48895656]
[1737047411384,1.05143111,713.11,712.22,0.48895656]
[1737047411584,1.05143111,713.11,712.23,0.48895656]
[1737047411780,1.05143111,713.11,712.24,0.48895656]
[1737047412083,1.05143111,713.11,712.25,0.48895656]
[1737047412284,1.05143111,713.11,712.26,0.48895656]
[1737047412485,1.05143111,713.11,712.27,0.48895656]
[1737047412784,1.05143111,713.3,712.28,0.48895656]
[1737047412785,1.05143111,713.12,712.28,0.48895656]
[1737047412983,1.05143111,713.12,712.29,0.48895656]
[1737047413176,1.05143111,713.12,712.3,0.48895656]
[1737047413382,1.05143111,713.12,712.15,0.28083971]
[1737047413682,1.05143111,713.12,712.16,0.48897021]
[1737047413878,1.05143111,713.12,712.17,0.48897021]